Cogmind - Beta 9.6 @@@ ROGUE MODE // 2020.08.18 @ 15:45:52 Player: Qnick Result: Destroyed by G-34 Mercenary with Small Laser Performance ------------- Evolutions (0) 0 Regions Visited (1) 200 Robots Destroyed (4) 20 Value Destroyed (74) 74 Prototype IDs (0) 0 Alien Tech Used (0) 0 Bonus (0) 0 TOTAL SCORE: 294 Bonus ------- None Cogmind --------- Core Integrity 0/250 Matter 125/300 Energy 18/250 System Corruption 0% Temperature Cool (6) Movement Walking (180) Ox2 Location -10/Materials Parts ------- > --- POWER (1) -------- Ion Engine > --- PROPULSION (2) --- Aluminum Leg > --- UTILITY (2) ------ Small Storage Unit Field Recycling Unit > --- WEAPON (2) ------- Particle Gun Particle Gun > --- INVENTORY (6) ---- Light Ion Engine Aluminum Leg Peak State ------------ > --- POWER ------------ Ion Engine > --- PROPULSION ------- Aluminum Leg > --- UTILITY ---------- Small Storage Unit Field Recycling Unit > --- WEAPON ----------- Particle Gun Particle Gun > --- INVENTORY -------- Light Ion Engine Aluminum Leg [Rating: 9] Favorites ----------- Power Light Ion Engine Engine Light Ion Engine Propulsion Compact Wheel Treads Light Treads Leg Aluminum Leg Wheel Compact Wheel Utility Small Storage Unit Device Field Recycling Unit Storage Small Storage Unit Weapon Assault Rifle Energy Gun Particle Gun Ballistic Gun Assault Rifle Build | -11 -10 ------- Run | Scr Mat Slots Evolved . | . . Power . | . . Propulsion . | . . Utility . | . . Weapon . | . . Parts Attached 13 | 8 5 Power 2 | 1 1 Engine 2 | 1 1 Core . | . . Reactor . | . . Propulsion 5 | 4 1 Treads 2 | 2 . Leg 1 | . 1 Wheel 2 | 2 . Hover . | . . Flight . | . . Utility 2 | 1 1 Device 1 | . 1 Storage 1 | 1 . Processor . | . . Hackware . | . . Protection . | . . Artifact . | . . Weapon 4 | 2 2 Energy Gun 2 | . 2 Energy Cannon . | . . Ballistic Gun 2 | 2 . Ballistic Cannon . | . . Launcher . | . . Special Weapon . | . . Impact Weapon . | . . Slashing Weapon . | . . Piercing Weapon . | . . Special Melee Weapon . | . . Unidentified Prototypes . | . . Parts Lost 5 | . 5 Power 1 | . 1 Propulsion 2 | . 2 Utility . | . . Weapon 2 | . 2 Highest Loss Streak 5 | . 5 Average Slot Usage (%) 84 | . 84 Engine 9 | . 9 Leg 1 | . 1 Wheel 19 | . 19 Device 11 | . 11 Storage 14 | . 14 Energy Gun 6 | . 6 Ballistic Gun 20 | . 20 Naked Turns . | . . Heaviest Build 19 | 11 19 Greatest Support 32 | 32 32 Greatest Overweight (x) 5 | . 5 Average Overweight (x) . | . . Largest Inventory Capacity 6 | 6 6 Average Capacity 5 | 5 6 Most Carried 6 | 4 6 Average Carried 4 | 2 4 Final Capacity 6 | 6 6 Final Carried 3 | 3 2 Class Distribution -------------------- 100% | Mutant Dominant Class ---------------- Mutant | -10/Materials Resources | -11 -10 ----------- Run | Scr Mat Matter Collected 226 | 226 . Remotely . | . . Salvage Created 89 | . 89 Parts 6 | . 6 Haulers Intercepted . | . . Recyclers Shooed . | . . Parts Field Recycled 3 | . 3 Retrieved Matter 21 | . 21 Parts Self-Destructed . | . . Prevented . | . . Kills | -11 -10 ------- Run | Scr Mat Combat Hostiles Destroyed 4 | . 4 Guns 4 | . 4 Classes Destroyed 2 | . 2 Swarmer 3 | . 3 Grunt 1 | . 1 Best Kill Streak 3 | . 3 Combat Bots Only 3 | . 3 Max Kills in Single Turn 2 | . 2 Gunslinging 1 | . 1 Exploded . | . . Melee . | . . Uniques/NPCs Destroyed . | . . Combat | -11 -10 -------- Run | Scr Mat Damage Taken 744 | . 744 Core 258 | . 258 Absorbed by Shields . | . . Core Remaining (%) 100 | 100 . Volleys Fired 26 | . 26 Largest 2 | . 2 Hottest 130 | . 130 Shots Fired 45 | . 45 Gun 45 | . 45 Cannon . | . . Launcher . | . . Special . | . . Kinetic 39 | . 39 Thermal 6 | . 6 Explosive . | . . Electromagnetic . | . . Robot Hit Streak 9 | . 9 Robot Miss Streak 3 | . 3 Penetration Max . | . . Secondary Targets 1 | . 1 Max Gunslinging Chain 1 | . 1 Shots Hit Robots 31 | . 31 Core Hits 7 | . 7 Critical Hits . | . . Critical Kills . | . . Critical Parts Destroyed . | . . Melee Attacks . | . . Impact . | . . Slashing . | . . Piercing . | . . Sneak Attacks . | . . Combat Hostiles . | . . Follow-up Attacks . | . . Damage Inflicted 367 | . 367 Guns 367 | . 367 Cannons . | . . Explosions . | . . Melee . | . . Ramming . | . . Kinetic 304 | . 304 Thermal 63 | . 63 Explosive . | . . Electromagnetic . | . . Impact . | . . Slashing . | . . Piercing . | . . Highest Corruption . | . . Average Corruption . | . . Corruption Purged . | . . Overload Shots . | . . Overflow Damage . | . . Projectiles . | . . Explosions . | . . Melee . | . . Knockbacks . | . . Impact . | . . Kinetic . | . . Secondary . | . . Self-Inflicted Damage . | . . Shots . | . . Rammed . | . . Targets Rammed . | . . Kicked . | . . Crushed . | . . Highest Temperature 234 | . 234 Average Temperature 63 | . 63 Received Heat Transfer 306 | . 306 Siege Activations . | . . Robots Corrupted . | . . Combat Hostiles . | . . Parts Fried . | . . Impact Corruptions . | . . Robots Melted . | . . Combat Hostiles . | . . Parts Melted . | . . Heat Transferred 148 | . 148 Parts Sabotaged . | . . Parts Stolen . | . . Parts Stripped . | . . Power Chain Reactions . | . . Missiles Intercepted . | . . Alert | -11 -10 ------- Run | Scr Mat Peak Influence 100 | . 100 Average Influence 32 | . 46 Maximum Alert Level . | . . Low Security (%) 100 | 100 100 Level 1 . | . . Level 2 . | . . Level 3 . | . . Level 4 . | . . Level 5 . | . . High Security . | . . Max Security . | . . Squads Dispatched 2 | . 2 Investigation 1 | . 1 Extermination . | . . Reinforcement 1 | . 1 Assault . | . . Garrison . | . . Intercept . | . . Construction Impeded . | . . Haulers Reinforced . | . . Stealth | -11 -10 --------- Run | Scr Mat Distress Signals . | . . Communications Jammed . | . . Distress Signals . | . . Times Spotted 7 | . 7 Peak Tracking Total 4 | . 4 Tactical Retreats 1 | . 1 Traps | -11 -10 ------- Run | Scr Mat Traps Triggered 1 | . 1 Indirectly . | . . Trap Hack Attempts . | . . Triggered . | . . Disarmed . | . . Reprogrammed . | . . Reused . | . . Traps Extracted . | . . Installed . | . . Triggered . | . . Machines | -11 -10 ---------- Run | Scr Mat Machines Disabled 1 | . 1 Max in Single Turn 1 | . 1 Machines Sabotaged . | . . Garrisons Compromised . | . . Overloaded Fab Kills . | . . Fab Network Shutdowns . | . . Hacking | -11 -10 --------- Run | Scr Mat Machines Accessed . | . . Terminals . | . . Fabricators . | . . Repair Stations . | . . Recycling Units . | . . Scanalyzers . | . . Garrison Access . | . . Total Hacks . | . . Successful . | . . Failed . | . . Catastrophic . | . . Database Lockouts . | . . Manual . | . . Terminals . | . . Fabricators . | . . Repair Stations . | . . Recycling Units . | . . Scanalyzers . | . . Garrison Access . | . . Terminal Hacks . | . . Fabricator Hacks . | . . Repair Station Hacks . | . . Recycling Unit Hacks . | . . Scanalyzer . | . . Garrison Access Hacks . | . . Unauthorized Hacks . | . . Terminals . | . . Fabricators . | . . Repair Stations . | . . Recycling Units . | . . Scanalyzers . | . . Garrison Access . | . . Data Cores Recovered . | . . Used . | . . Hacking Detections . | . . Full Trace Events . | . . Feedback Events . | . . Feedback Blocked . | . . Robot Schematics Acquired . | . . Robots Built . | . . Matter . | . . Time . | . . Total Robot Build Rating . | . . Part Schematics Acquired . | . . Parts Built . | . . Matter . | . . Time . | . . Total Part Build Rating . | . . Parts Repaired . | . . Time . | . . Parts Recycled . | . . Recycled Matter . | . . Retrieved Matter . | . . Retrieved Components . | . . Parts Scanalyzed . | . . Part Schematics Acquired . | . . Parts Damaged . | . . Bothacking | -11 -10 ------------ Run | Scr Mat Used RIF Installer . | . . Robots Hacked . | . . Non-combat . | . . Combat . | . . Robot Hacks Applied . | . . Relay Couplers Released . | . . Robots Rewired . | . . Allies Hacked . | . . Hacks Repelled . | . . Allies | -11 -10 -------- Run | Scr Mat Total Allies . | . . Largest Group . | . . Highest-Rated Group . | . . Highest-Rated Ally . | . . Total Orders . | . . Ally Attacks . | . . Total Damage . | . . Kills . | . . Allies Corrupted . | . . Allies Melted . | . . Intel | -11 -10 ------- Run | Scr Mat Robot Analysis Total . | . . Derelict Logs Recovered . | . . Drone Launches . | . . Drone Recoveries . | . . Exploration | -11 -10 ------------- Run | Scr Mat Turns Passed 299 | 88 211 Spaces Moved 164 | 74 90 Core 16 | 11 5 Treads . | . . Legs . | . . Wheels 148 | 63 85 Hover . | . . Flight . | . . Fastest Speed 50 | 50 100 Average Speed 102 | 92 111 Slowest Speed 300 | 100 300 Overloaded Moves . | . . Propulsion Burnouts . | . . Robots Hopped . | . . Cave-ins Triggered . | . . Exploration Rate (%) 9 | 4 15 Regions Visited 1 Branch Regions . Pre-discovered Areas . | . . Known Exits Taken . | . . Unknown Exits Taken 1 | 1 . Scrap Searched . | . . Spaces Dug . | . . Terrain Destroyed . | . . Melee . | . . Projectile . | . . AOE . | . . Actions | -11 -10 --------- Run | Scr Mat Total 250 | 94 156 Wait 31 | . 31 Move 163 | 73 90 Hop . | . . Pick Up 15 | 11 4 Fast Attach . | . . Attach 13 | 8 5 Detach . | . . Swap . | . . Drop 2 | 2 . Fire 26 | . 26 Melee . | . . Ram . | . . Kick . | . . Crush . | . . Escape Stasis . | . . Rewire . | . . Trap . | . . Miscellaneous . | . . Route ------- -11/Scrapyard -10/Materials History --------- Turn | Location | Event 19 | -11/Scrapyard | Discovered new exit (range 16) 89 | -11/Scrapyard | Entered Materials 242 | -10/Materials | Core integrity fell below 50% 281 | -10/Materials | Core integrity fell below 20% 292 | -10/Materials | Lost 5 parts (1p2n2w) 300 | -10/Materials | Destroyed by G-34 Mercenary with Small Laser Last Messages --------------- 00170_ ALERT: Alarm triggered, dispatching investigation squad. 00171_ ALERT: Hostiles spotted, dispatching reinforcements to Terminal M003. 00184_ U-05 Engineer lays Concrete. 00184_ Atomic Centrifuge disabled. 00187_ S-10 Pest destroyed. 00202_ Switching to secondary target: S-10 Pest. 00202_ S-10 Pest destroyed. 00203_ U-05 Engineer builds a Door. 00211_ Acquired Ion Engine. 00219_ Com. Wheel destroyed. 00228_ Lgt. Ion Engine destroyed. 00235_ Destroyed Sml. Laser. 00236_ Assault Rifle destroyed. 00250_ G-34 Mercenary destroyed. 00251_ Assault Rifle destroyed. 00261_ Com. Wheel destroyed. 00270_ R-06 Scavenger collects Flight Unit. 00273_ R-06 Scavenger collects Lgt. Assault Rifle. 00277_ R-06 Scavenger collects Flight Unit. Map ----- +----------------------------------------------------+ | ??????# ????????????????? | | ??????# ????????????????? | | ??????# ????????????????? | | ??????#### #########????????????????????? | | ?????????# #????????????????????????????? | | ?????????# #????????????????????????????? | | ?????????# #????????????????????????????? | | ?????????# ###########??????????????????? | | ?????????# ## """ #??????????????????? | | ?????????# ## "Y" #??????????????????? | | ?????????# ## " " #??????????????????? | | ?????????# ## #??????????????????? | | ????????## ## #??????????????????? | | ????????# # """ #??????????????????? | | ????????# # """ #??????????????????? | | ????????# + """ #??????????????????? | | ????????# # #??????????????????? | | ??######## #########+#??????????????????? | | ??# # [[#???# #??????????????????? | | ??# + #???# ########### #??????? | | ??# # #???# **! #??????? | | ??# # #???# *% #??????? | | ??# #### [[#???# *! #??????? | | ??# #??# [[#???# #??????? | | ??########??######### #??????? | | ?????????????# g@ # #??????? | | ?????????????# """%+ ????? | | ?????????????# """ # ##### ????? | | ?????????????# " %# #???? ????? | | ?????????????# !%* +%#????? ????? | | ?????????????# ###??????#######?????? | | ?????????????########????????????????????? | | ?????????????????????????????????????????? | | ?????????????????????????????????????????? | | ?????????????????????????????????????????? | | | | | | | | | | | | | | | | | | | | | | | | | | | | | | | +----------------------------------------------------+ Best States ------------- Heat Dissipation 25 Energy Generation 10 Energy Capacity 250 Matter Stores 257 Matter Capacity 300 Sight Range 16 Terrain Scan Density 10 Evasion (%) 50 Item Schematics ----------------- None Robot Schematics ------------------ None Fabricated ------------ Nothing Alien Tech Used ----------------- None Achievements -------------- None Challenges ------------ None Game ------ Seed CentriumBombCore Manual? 0 Play Time 00:08:43 Cumulative 3.1 hours Start 2020.08.18 @ 15:36:33 End 2020.08.18 @ 15:45:52 Sessions 1 Manual Loads 0 Difficulty Rogue Special Mode None Game No. 4 Rogue 4 Adventurer 0 Explorer 0 Win Type - Total 0 Types 0/0/0/0/0/0/0 Lore% 2 Gallery% 8 Achievement% 7 Wizard Run 0 Options --------- ASCII 0 Keyboard 0 Movement Numpad Keybinds 0 Fullscreen 1 Font 20/Smallcaps Map View 66x50 Tactical HUD 1 Map Filters NONE Filters NONE Steam 1 RUN: ca115fa0-88c7-4ce8-803a-33bdd5991b4a